{"text_format":"1","workbook":"xlsx","n_sheets":3,"sheets":["Szary1","Szary2","Arkusz3"],"not_rendered":{"charts":0,"images":0,"macros":1,"external_links":0,"defined_names":1,"comments":0,"pivot_tables":0},"unopened":[],"bounds":{"document_bytes":16777216,"sheet_cells":100000,"rows_first":2000,"rows_last":500,"rows_between":2000,"halvings":0,"cell_chars":16384,"cell_head_chars":4096},"cells_cut":0,"cells_raw":0,"read":"whole","date_system":"1900"}

{"sheet":"Szary1","index":0,"n_rows":25,"n_cols":7,"rows_kept":25,"cut":false,"hidden":false,"merged":[]}
[]
[]
[]
[]
[null,null,null,null,null,"L.p.","Specyfikacja"]
[null,null,null,null,null,{"$f":"IF(G6&H6<>\"\",ROW()-5&\".\",\"\")","v":""}]
[null,null,null,null,null,{"$f":"IF(G7&H7<>\"\",ROW()-5&\".\",\"\")","v":""}]
[null,null,null,null,null,""]
[null,null,null,null,null,""]
[null,null,null,null,null,""]
[null,null,null,null,null,""]
[null,null,null,null,null,""]
[null,null,null,null,null,""]
[null,null,null,null,null,""]
[null,null,null,null,null,""]
[null,null,null,null,null,""]
[null,null,null,null,null,""]
[null,null,null,null,null,""]
[null,null,null,null,null,""]
[null,null,null,null,null,""]
[null,null,null,null,null,""]
[null,null,null,null,null,""]
[null,null,null,null,null,""]
[null,null,null,null,null,""]
[null,null,null,null,null,""]

{"sheet":"Szary2","index":1,"n_rows":26,"n_cols":7,"rows_kept":26,"cut":false,"hidden":false,"merged":[]}
[]
["Sprawa"]
[]
[]
[null,null,null,null,null,"L.p.","Nazwa"]
[null,null,null,null,null,{"$f":"IF(G6&H6<>\"\",ROW()-5&\".\",\"\")","v":"1."},"Ala"]
[null,null,null,null,null,"2.","Poszła"]
[]
[null,null,null,null,null,""]
[null,null,null,null,null,""]
[null,null,null,null,null,""]
[null,null,null,null,null,""]
[null,null,null,null,null,""]
[null,null,null,null,null,""]
[null,null,null,null,null,""]
[null,null,null,null,null,""]
[null,null,null,null,null,""]
[null,null,null,null,null,""]
[null,null,null,null,null,""]
[null,null,null,null,null,""]
[null,null,null,null,null,""]
[null,null,null,null,null,""]
[null,null,null,null,null,""]
[null,null,null,null,null,""]
[null,null,null,null,null,""]
[null,null,null,null,null,""]

{"sheet":"Arkusz3","index":2,"n_rows":3,"n_cols":2,"rows_kept":3,"cut":false,"hidden":false,"merged":[]}
[]
[]
[null,{"$f":"AND(CELL(\"wiersz\")=ROW(),CELL(\"kolumna\")=COLUMN())","v":false}]